bitfinex/quotes_BTCUSD_20241130
["timestamp","ask_amount","ask_price","bid_price","bid_amount"]
[1732949163085,0.39431108,97018.0,97017.0,0.31998596]
[1732949163749,0.39131108,97018.0,97017.0,0.31898596]
[1732949163948,0.39131108,97018.0,97017.0,0.32198596]
[1732949164169,0.38431108,97018.0,97017.0,0.32098596]
[1732949164617,0.38531108,97018.0,97017.0,0.32698596]
[1732949165484,0.38531108,97018.0,97017.0,0.33598596]
[1732949166998,0.39531108,97018.0,97017.0,0.33598596]
[1732949167208,0.93671108,97018.0,97017.0,0.33598596]
[1732949167410,0.96879919,97018.0,97017.0,0.33598596]
[1732949168296,0.96779919,97018.0,97017.0,0.32698596]
[1732949168721,0.96879919,97018.0,97017.0,0.32698596]
[1732949169956,0.96979919,97018.0,97017.0,0.33598596]
[1732949170409,0.96879919,97018.0,97017.0,0.32698596]
[1732949170615,0.96779919,97018.0,97017.0,0.31798596]
[1732949170823,0.96979919,97018.0,97017.0,0.33598596]
[1732949171240,0.96979919,97018.0,97017.0,0.25862603]
[1732949174750,1.11979919,97018.0,97017.0,0.25862603]
[1732949177264,1.11979919,97018.0,97017.0,0.21962536]
[1732949177468,1.11979919,97018.0,97017.0,0.21870836]
[1732949180175,1.08771108,97018.0,97017.0,0.21870836]
[1732949181261,1.11964244,97018.0,97017.0,0.21870836]
[1732949181719,1.13053013,97018.0,97017.0,0.21870836]
[1732949181921,1.23336159,97018.0,97017.0,0.21870836]
[1732949182558,1.13053013,97018.0,97017.0,0.21870836]
[1732949183602,1.13053013,97018.0,97017.0,0.22043996]
[1732949185429,1.11964244,97018.0,97017.0,0.22043996]
[1732949187093,1.11964244,97018.0,97017.0,0.18143996]
[1732949187298,1.08771108,97018.0,97017.0,0.11562996]
[1732949187506,1.19054254,97018.0,97017.0,0.0107316]
[1732949187708,0.251675,97016.0,97015.0,0.0017312]
[1732949187911,0.35452021,97016.0,97015.0,0.0017312]
[1732949188583,0.50452021,97016.0,97015.0,0.0017312]
[1732949189005,0.53359321,97016.0,97015.0,0.0107312]
[1732949189212,0.63642467,97016.0,97015.0,0.0107312]
[1732949189431,0.65942467,97016.0,97015.0,0.0107312]
[1732949189917,0.66042467,97016.0,97015.0,0.0167312]
[1732949190648,1.08619471,97016.0,97015.0,0.0167312]
[1732949191133,1.08619471,97016.0,96998.0,0.00100407]
[1732949191134,0.54886304,96999.0,96998.0,0.00100407]
[1732949191366,0.75060825,96999.0,96998.0,0.00100407]
[1732949192570,0.75160825,96999.0,96998.0,0.00900407]
[1732949193746,0.75260825,96999.0,96998.0,0.00900407]
[1732949196960,0.7731519,96999.0,96998.0,0.00900407]
[1732949197833,0.80515013,96999.0,96998.0,0.00900407]
[1732949200533,0.80515013,96999.0,96998.0,0.00139107]
[1732949203864,0.12584521,96999.0,96998.0,0.00139107]
[1732949204330,0.22893821,96999.0,96998.0,0.00139107]
[1732949206479,0.24912094,96999.0,96998.0,0.00139107]
[1732949207635,0.24912094,96999.0,96998.0,0.00312267]
[1732949208636,0.79052094,96999.0,96998.0,0.00312267]
[1732949210043,0.89892094,96999.0,96998.0,0.00312267]
[1732949210259,0.79052094,96999.0,96998.0,0.00312267]
[1732949212136,0.79052094,96999.0,96998.0,0.00244869]
[1732949213935,0.82260236,96999.0,96998.0,0.00244869]
[1732949215259,0.82260236,96999.0,96985.0,0.0758]
[1732949215260,0.103098,96995.0,96994.0,0.00091009]
[1732949215465,0.26102463,96995.0,96994.0,0.00091009]
[1732949216808,0.26202463,96995.0,96994.0,0.00091009]
[1732949217557,0.26302463,96995.0,96994.0,0.00091009]
[1732949218229,0.26202463,96995.0,96994.0,0.00091009]
[1732949219088,0.26302463,96995.0,96994.0,0.00091009]
[1732949219520,0.26202463,96995.0,96994.0,0.00091009]
[1732949219757,0.26302463,96995.0,96994.0,0.00091009]
[1732949220447,0.23902463,96995.0,96994.0,0.00091009]
[1732949220658,0.24002463,96995.0,96994.0,0.04851009]
[1732949220883,0.20794321,96995.0,96994.0,0.04851009]
[1732949221334,0.20694321,96995.0,96994.0,0.04851009]
[1732949221544,0.20694321,96995.0,96994.0,0.00091009]
[1732949221782,0.23094321,96995.0,96994.0,0.00091009]
[1732949222190,0.20694321,96995.0,96994.0,0.00091009]
[1732949222300,0.20594321,96995.0,96994.0,0.12431009]
[1732949222736,0.20694321,96995.0,96994.0,0.12631009]
[1732949224288,0.20794321,96995.0,96994.0,0.07871009]
[1732949224744,0.23094321,96995.0,96994.0,0.00291009]
[1732949225600,0.26302919,96995.0,96994.0,0.00291009]
[1732949226447,0.23094321,96995.0,96994.0,0.00291009]
[1732949226652,0.26302214,96995.0,96994.0,0.00291009]
[1732949227320,0.26301696,96995.0,96994.0,0.00291009]
[1732949230090,0.26101696,96995.0,96994.0,0.00091009]
[1732949230291,0.26201696,96995.0,96994.0,0.00291009]
[1732949230520,0.26388296,96995.0,96994.0,0.00291009]
[1732949231002,0.26288296,96995.0,96994.0,0.00291009]
[1732949231228,0.26388296,96995.0,96994.0,0.00291009]
[1732949231875,0.34398296,96995.0,96994.0,0.00291009]
[1732949232506,0.26388296,96995.0,96994.0,0.00091009]
[1732949232734,0.80428296,96995.0,96994.0,0.00085004]
[1732949232952,0.80528296,96995.0,96994.0,0.00285004]
[1732949233155,0.80328296,96995.0,96994.0,0.00085004]
[1732949233569,0.80528296,96995.0,96994.0,0.00285004]
[1732949233983,0.80328296,96995.0,96994.0,0.00085004]
[1732949234416,0.80428296,96995.0,96994.0,0.00085004]
[1732949235240,0.80528296,96995.0,96994.0,0.00285004]
[1732949241894,0.80528296,96995.0,96994.0,0.00059953]
[1732949241895,0.93318296,96995.0,96994.0,0.00059953]
[1732949242330,1.08318296,96995.0,96994.0,0.00059953]
[1732949242755,1.08318296,96995.0,96994.0,0.00233153]
[1732949243618,1.00308296,96995.0,96994.0,0.00233153]
[1732949244927,1.11148296,96995.0,96994.0,0.00233153]
[1732949245153,1.00308296,96995.0,96994.0,0.00233153]
[1732949245386,0.24088296,96995.0,96994.0,0.00233153]
[1732949245603,0.10571121,96995.0,96994.0,0.18863053]
[1732949245833,0.002866,96995.0,96994.0,0.08553153]
[1732949246035,0.002866,96995.0,96994.0,0.18863053]
[1732949246713,0.001866,96995.0,96994.0,0.18863053]
[1732949247145,0.001866,96995.0,96994.0,0.190031]
[1732949247348,0.002866,96995.0,96994.0,0.190031]
[1732949247571,0.001866,96995.0,96994.0,0.084932]
[1732949247785,0.20780921,96995.0,96994.0,0.084932]
[1732949248026,0.20780921,96995.0,96994.0,0.085932]
[1732949248340,0.10471121,96995.0,96994.0,0.085932]
[1732949248546,0.10371121,96995.0,96994.0,0.085932]
[1732949248988,0.000866,96995.0,96994.0,0.241831]
[1732949258473,0.02143714,96995.0,96994.0,0.241831]
[1732949263958,0.000866,96995.0,96994.0,0.241831]
[1732949273076,0.000866,96995.0,96994.0,0.261831]
[1732949275083,0.000866,96995.0,96994.0,0.251831]
[1732949275293,0.000866,96995.0,96994.0,0.261831]
[1732949292254,0.000866,96995.0,96994.0,0.26165032]
[1732949296261,0.000866,96995.0,96994.0,0.01555132]
[1732949296468,0.000866,96995.0,96994.0,0.11865032]
[1732949296674,0.000866,96995.0,96994.0,0.24365032]
[1732949297344,0.000866,96995.0,96994.0,0.24277964]
[1732949301877,0.000866,96995.0,96994.0,0.19757964]
[1732949302542,0.000866,96995.0,96994.0,0.11777964]
[1732949303888,0.000866,96995.0,96994.0,0.01468064]
[1732949304532,0.000866,96995.0,96994.0,0.00468064]
[1732949304946,0.000866,96995.0,96994.0,0.10777964]
[1732949305803,0.000866,96995.0,96994.0,0.11777964]
[1732949306012,0.000866,96995.0,96994.0,0.01468064]
[1732949306834,0.20680921,96995.0,96994.0,0.00468064]
[1732949308151,0.10371121,96995.0,96994.0,0.00468064]
[1732949309317,0.20680921,96995.0,96994.0,0.00468064]
[1732949309940,0.10371121,96995.0,96994.0,0.00468064]
[1732949315855,0.20680921,96995.0,96994.0,0.00468064]
[1732949317863,0.10371121,96995.0,96994.0,0.00468064]
[1732949318692,0.20680921,96995.0,96994.0,0.00468064]
[1732949319390,0.10371121,96995.0,96994.0,0.00468064]
[1732949319608,0.000866,96995.0,96994.0,0.10777964]
[1732949319842,0.000866,96995.0,96994.0,0.23867964]
[1732949321302,0.000866,96995.0,96994.0,0.19097964]
[1732949321720,0.000866,96995.0,96994.0,0.10777964]
[1732949323257,0.000866,96995.0,96994.0,0.11777964]
[1732949323486,0.000866,96995.0,96994.0,0.25867964]
[1732949323669,0.000866,96995.0,96994.0,0.24867964]
[1732949324406,0.000866,96995.0,96994.0,0.24767964]
[1732949324642,0.009866,96995.0,96994.0,0.24467964]
[1732949324868,0.009866,96995.0,96994.0,0.24567964]
[1732949324869,0.018866,96995.0,96994.0,0.24567964]
[1732949329887,0.018866,96995.0,96994.0,0.25681099]
[1732949338884,0.018866,96995.0,96994.0,0.20911099]
[1732949340180,0.018866,96995.0,96994.0,0.12591099]
[1732949340814,0.018866,96995.0,96994.0,0.11477964]
[1732949355963,0.018866,96995.0,96994.0,0.16267964]
[1732949356669,0.018866,96995.0,96994.0,0.18750434]
[1732949359348,0.018866,96995.0,96994.0,0.17750434]
[1732949359574,0.018866,96995.0,96994.0,0.18750434]
[1732949359696,0.018866,96995.0,96994.0,0.17750434]
[1732949359932,0.018866,96995.0,96994.0,0.18567964]
[1732949360876,0.018866,96995.0,96994.0,0.18750431]
[1732949363416,0.018866,96995.0,96994.0,0.16450431]
[1732949363829,0.018866,96995.0,96994.0,0.16267964]
[1732949364474,0.018866,96995.0,96994.0,0.16450431]
[1732949368450,0.01834706,96995.0,96994.0,0.31450431]
[1732949368665,0.01834706,96995.0,96994.0,0.31267964]
[1732949373963,0.01834706,96995.0,96994.0,0.34567964]
[1732949375239,0.01834706,96995.0,96994.0,0.42097964]
[1732949383292,0.01834706,96995.0,96994.0,0.52382485]
[1732949392519,0.01834706,96995.0,96994.0,0.52327668]
[1732949406194,6e-08,96995.0,96994.0,0.52327668]
[1732949406818,0.000866,97001.0,97000.0,0.136092]
[1732949407023,0.000866,97001.0,97000.0,0.2879163]
[1732949407234,0.000866,97001.0,97000.0,0.286092]
[1732949409312,0.009866,97001.0,97000.0,0.286092]
[1732949409970,0.018866,97001.0,97000.0,0.287092]
[1732949413007,0.01352082,97001.0,97000.0,0.287092]
[1732949414052,0.01525262,97001.0,97000.0,0.287092]
[1732949416061,0.01525262,97001.0,97000.0,0.29783677]
[1732949421907,0.01525262,97001.0,97000.0,0.41068198]
[1732949422106,0.0496,97036.0,97028.0,0.123063]
[1732949422329,0.0496,97044.0,97043.0,0.103047]
[1732949422531,0.0496,97044.0,97043.0,0.286047]
[1732949422756,0.01472373,97045.0,97044.0,0.286046]
[1732949423699,0.01472373,97045.0,97044.0,0.2870286]
[1732949424160,0.02372373,97045.0,97044.0,0.2880286]
[1732949424603,0.02672373,97045.0,97044.0,0.2880286]
[1732949425009,0.02372373,97045.0,97044.0,0.2880286]
[1732949425419,0.02672373,97045.0,97044.0,0.2880286]
[1732949425625,0.02845533,97045.0,97044.0,0.2880286]
[1732949425839,0.01945533,97045.0,97044.0,0.2870286]
[1732949426045,0.02245533,97045.0,97044.0,0.2870286]
[1732949426368,0.01945533,97045.0,97044.0,0.2870286]
[1732949426622,0.01645533,97045.0,97044.0,0.2870286]
[1732949426833,0.02145533,97045.0,97044.0,0.2870286]
[1732949427046,0.02545533,97045.0,97044.0,0.2870286]
[1732949427473,0.02145533,97045.0,97044.0,0.2870286]
[1732949427866,0.02545533,97045.0,97044.0,0.2870286]
[1732949428518,0.02145533,97045.0,97044.0,0.2870286]
[1732949428734,0.02545533,97045.0,97044.0,0.2870286]
[1732949429614,0.02045533,97045.0,97044.0,0.2870286]
[1732949429851,0.07005533,97045.0,97044.0,0.2640286]
[1732949430305,0.07005533,97045.0,97044.0,0.27475456]
[1732949430578,0.06605533,97045.0,97044.0,0.27475456]
[1732949430810,0.06605533,97045.0,97044.0,0.29775456]
[1732949431046,0.07005533,97045.0,97044.0,0.29775456]
[1732949431490,0.06605533,97045.0,97044.0,0.29775456]
[1732949431706,0.07105533,97045.0,97044.0,0.29775456]
[1732949433238,0.07105533,97045.0,96998.0,0.01]
[1732949433239,0.1211,97017.0,96998.0,0.01]
[1732949433464,0.1211,97017.0,96920.0,0.5014895]
[1732949433465,0.01,96991.0,96950.0,0.05357938]
[1732949433681,0.01,96991.0,96932.0,0.0484]
[1732949433682,0.5414,96987.0,96952.0,0.206287]
[1732949433942,0.10284521,96990.0,96955.0,0.103139]
[1732949433943,0.103126,96969.0,96955.0,0.103139]
[1732949434153,0.01,96975.0,96948.0,0.01271301]
[1732949434395,0.01,96979.0,96948.0,0.0017308]
[1732949434621,0.103114,96980.0,96966.0,0.103127]
[1732949434834,0.10284521,96979.0,96958.0,0.206273]
[1732949435055,0.10284521,96979.0,96958.0,0.00059737]
[1732949435220,0.10284521,96979.0,96960.0,0.20627]
[1732949435221,0.30907521,96979.0,96960.0,0.20627]
[1732949435446,0.10312,96974.0,96962.0,0.103132]
[1732949435677,0.10284521,96973.0,96960.0,0.20627]
[1732949435882,0.10284521,96973.0,96964.0,0.10313]
[1732949436086,0.10284521,96973.0,96965.0,0.103129]
[1732949436433,0.10284521,96973.0,96966.0,0.023]
[1732949436879,0.10284521,96973.0,96960.0,0.023]
[1732949437097,0.10284521,96973.0,96966.0,0.103128]
[1732949437293,0.10284521,96973.0,96967.0,0.023]
[1732949437514,0.20596621,96973.0,96967.0,0.023]
[1732949437934,0.10484521,96973.0,96967.0,0.023]
[1732949438153,0.103124,96970.0,96967.0,0.023]
[1732949438370,0.10284521,96969.0,96967.0,0.023]
[1732949438939,0.10284521,96969.0,96968.0,0.023]
[1732949440509,0.10384521,96969.0,96968.0,0.023]
[1732949440730,0.20597021,96969.0,96966.0,0.0009815]
[1732949441032,0.10484521,96969.0,96968.0,0.041]
[1732949441433,0.20797021,96969.0,96968.0,0.041]
[1732949441632,0.20697021,96969.0,96968.0,0.032]
[1732949442064,0.20797021,96969.0,96968.0,0.032]
[1732949442817,0.20797021,96969.0,96968.0,0.009]
[1732949443273,0.20697021,96969.0,96968.0,0.009]
[1732949443483,0.20797021,96969.0,96968.0,0.018]
[1732949444436,0.20797021,96969.0,96968.0,0.041]
[1732949445768,0.22808851,96969.0,96968.0,0.041]
[1732949446201,0.20797021,96969.0,96968.0,0.041]
[1732949447917,0.10484521,96969.0,96968.0,0.041]
[1732949448138,0.10484521,96969.0,96968.0,0.144126]
[1732949448345,0.10484521,96969.0,96968.0,0.144992]
[1732949448553,0.10484521,96969.0,96968.0,0.041866]
[1732949448770,0.10484521,96969.0,96968.0,0.144992]
[1732949449001,0.10484521,96969.0,96968.0,0.041866]
[1732949449622,0.10484521,96969.0,96968.0,0.144992]
[1732949449834,0.10484521,96969.0,96968.0,0.041866]
[1732949450053,0.10484521,96969.0,96968.0,0.144992]
[1732949454633,0.002,96969.0,96968.0,0.144992]
[1732949459184,0.001,96969.0,96968.0,0.126992]
[1732949459405,0.103107,96986.0,96982.0,0.023]
[1732949459636,0.10284521,96985.0,96984.0,0.103109]
[1732949459867,0.10284521,96985.0,96984.0,0.023]
[1732949460082,0.10284521,96985.0,96984.0,0.126109]
[1732949460283,0.10284521,96985.0,96984.0,0.103109]
[1732949460491,0.10284521,96985.0,96984.0,0.126109]
[1732949461153,0.10284521,96985.0,96984.0,0.134109]
[1732949462271,0.10284521,96985.0,96984.0,0.143109]
[1732949466567,0.10284521,96985.0,96984.0,0.04]
[1732949466774,0.10284521,96985.0,96984.0,0.143109]
[1732949470977,0.20595321,96985.0,96984.0,0.017]
[1732949471373,0.10284521,96985.0,96984.0,0.017]
[1732949471618,0.10284521,96985.0,96984.0,0.120109]
[1732949471757,0.10284521,96985.0,96984.0,0.0178663]
[1732949472361,0.10284521,96985.0,96984.0,0.1439753]
[1732949472821,0.10284521,96985.0,96984.0,0.0408663]
[1732949473057,0.10284521,96985.0,96984.0,0.1439753]
[1732949473943,0.10284521,96985.0,96984.0,0.0408663]
[1732949474388,0.10284521,96985.0,96984.0,0.1439753]
[1732949474614,0.10284521,96985.0,96984.0,0.0408663]
[1732949476908,0.10284521,96985.0,96984.0,0.1439753]
[1732949477123,0.10284521,96985.0,96984.0,0.0408663]
[1732949477763,0.20595321,96985.0,96984.0,0.0408663]
[1732949478890,0.81865321,96985.0,96984.0,0.0178663]
[1732949479324,0.85073221,96985.0,96984.0,0.0178663]
[1732949480419,0.85073221,96985.0,96984.0,0.0088663]
[1732949481296,0.85073221,96985.0,96984.0,0.0008663]
[1732949481506,0.85173221,96985.0,96984.0,0.0088663]
[1732949482153,0.85173221,96985.0,96984.0,0.0098663]
[1732949482363,0.13492421,96985.0,96984.0,0.0008663]
[1732949482592,0.23803221,96985.0,96984.0,0.0008663]
[1732949482847,0.13692421,96985.0,96984.0,0.0418663]
[1732949483049,0.10484521,96985.0,96984.0,0.0418663]
[1732949483294,0.20795321,96985.0,96984.0,0.0418663]
[1732949490557,0.20795321,96985.0,96984.0,0.0188663]
[1732949492970,0.20795321,96985.0,96883.0,0.05105789]
[1732949492971,0.02,96959.0,96927.0,0.0786]
[1732949493220,0.01,96939.0,96925.0,0.0478]
[1732949493459,0.01,96954.0,96917.0,0.0803312]
[1732949493460,0.103177,96921.0,96917.0,0.0803312]
[1732949493676,0.10284521,96920.0,96917.0,0.0803312]
[1732949495043,0.10284521,96920.0,96919.0,0.00191056]
[1732949495265,0.10284521,96920.0,96919.0,0.02491056]
[1732949495496,0.10384521,96920.0,96919.0,0.03391056]
[1732949495713,0.21802221,96920.0,96919.0,0.01991056]
[1732949495933,0.11318,96918.0,96917.0,0.0017312]
[1732949496150,0.21602521,96918.0,96917.0,0.00191029]
[1732949498128,0.21702521,96918.0,96917.0,0.00491029]
[1732949498348,0.21802521,96918.0,96917.0,0.00491029]
[1732949498570,0.75942521,96918.0,96917.0,0.00191029]
[1732949498808,0.76042521,96918.0,96917.0,0.00491029]
[1732949503471,0.76533521,96918.0,96917.0,0.00491029]
[1732949504720,0.76533521,96918.0,96838.0,0.0478]
[1732949504721,0.113229,96872.0,96838.0,0.0478]
[1732949504927,0.64424521,96872.0,96871.0,0.00124464]
[1732949505345,0.74747421,96872.0,96871.0,0.00124464]
[1732949505780,0.74847421,96872.0,96871.0,0.00124464]
[1732949506197,0.64524521,96872.0,96871.0,0.00124464]
[1732949506400,0.74847421,96872.0,96871.0,0.00124464]
[1732949508291,0.74847421,96872.0,96871.0,0.12747464]
[1732949508292,0.10384521,96872.0,96871.0,0.12747464]
[1732949508736,0.001,96872.0,96871.0,0.12747464]
[1732949514765,0.001,96872.0,96871.0,0.20850163]
[1732949516903,0.001,96872.0,96871.0,0.20667464]
[1732949520739,0.001,96872.0,96871.0,0.20850162]
[1732949522799,0.001,96872.0,96871.0,0.20667464]
[1732949527014,0.001,96872.0,96871.0,0.20850163]
[1732949527228,0.001,96872.0,96871.0,0.20667464]
[1732949527635,0.0017344,96887.0,96871.0,0.10344464]
[1732949527830,0.0017344,96887.0,96886.0,0.103214]
[1732949528003,0.10457961,96887.0,96886.0,0.103214]
[1732949528997,0.10457961,96887.0,96884.0,0.103215]
[1732949529209,0.10284521,96886.0,96872.0,0.023]
[1732949529405,0.103229,96872.0,96871.0,0.00124464]
[1732949529652,0.23808237,96872.0,96871.0,0.00124464]
[1732949529855,0.20607421,96872.0,96871.0,0.00124464]
[1732949530062,0.24807946,96872.0,96871.0,0.00224464]
[1732949530496,0.78947946,96872.0,96871.0,0.00124464]
[1732949530711,0.01,96860.0,96850.0,0.103251]
[1732949530867,0.01,96860.0,96841.0,0.07599607]
[1732949530868,0.103244,96858.0,96841.0,0.07599607]
[1732949531075,0.103246,96856.0,96848.0,0.103254]
[1732949531285,0.10284521,96855.0,96843.0,0.206519]
[1732949531484,0.10284521,96855.0,96844.0,0.206517]
[1732949531958,0.10284521,96855.0,96850.0,0.002]
[1732949532138,0.10284521,96855.0,96850.0,0.105251]
[1732949532463,0.03200703,96854.0,96850.0,0.105251]
[1732949532692,0.10284521,96853.0,96852.0,0.12625]
[1732949534484,0.10384521,96853.0,96852.0,0.12725]
[1732949534669,0.10484521,96853.0,96852.0,0.13125]
[1732949534951,0.10384521,96853.0,96852.0,0.13025]
[1732949535161,0.10484521,96853.0,96852.0,0.13125]
[1732949535619,0.002,96853.0,96852.0,0.13125]
[1732949536256,0.001,96853.0,96852.0,0.12725]
[1732949536472,0.103228,96873.0,96864.0,0.103237]
[1732949536680,0.13484003,96872.0,96864.0,0.103237]
[1732949536886,0.03199482,96871.0,96864.0,0.103237]
[1732949537095,0.10284521,96870.0,96864.0,0.103236]
[1732949537337,0.10284521,96870.0,96865.0,0.103236]
[1732949537523,0.10284521,96870.0,96869.0,0.103232]
[1732949538213,0.10384521,96870.0,96869.0,0.103232]
[1732949538811,0.10484521,96870.0,96869.0,0.112232]
[1732949539673,0.10484521,96870.0,96869.0,0.135232]
[1732949540104,0.10584521,96870.0,96869.0,0.135232]
[1732949540561,0.10484521,96870.0,96869.0,0.135232]
[1732949540778,0.10584521,96870.0,96869.0,0.143232]
[1732949542076,0.10758041,96870.0,96869.0,0.143232]
[1732949544938,0.10758041,96870.0,96869.0,0.04]
[1732949545362,0.10758041,96870.0,96869.0,0.143232]
[1732949547835,0.10758041,96870.0,96869.0,0.14294192]
[1732949548282,0.10758041,96870.0,96861.0,0.206481]
[1732949548283,0.11326,96842.0,96814.0,0.10329]
[1732949548486,0.21610521,96842.0,96813.0,0.206582]
[1732949548720,0.21610521,96842.0,96817.0,0.0773]
[1732949548721,0.64424521,96842.0,96817.0,0.0773]
[1732949548932,0.10284521,96841.0,96821.0,0.206564]
[1732949549154,0.103264,96839.0,96826.0,0.103277]
[1732949549340,0.11284521,96839.0,96831.0,0.00030458]
[1732949549544,0.10327,96834.0,96831.0,0.00030458]
[1732949549746,0.10284521,96833.0,96831.0,0.00030458]
[1732949550381,0.10284521,96833.0,96832.0,0.103271]
[1732949550960,0.10384521,96833.0,96832.0,0.10319104]
[1732949551375,0.10284521,96833.0,96831.0,0.00030458]
[1732949551591,0.11084521,96833.0,96832.0,0.103271]
[1732949551955,0.10684521,96833.0,96832.0,0.103271]
[1732949552637,0.10284521,96833.0,96832.0,0.103271]
[1732949553112,0.10384521,96833.0,96832.0,0.001]
[1732949553271,0.10484521,96833.0,96832.0,0.107271]
[1732949553480,0.10284521,96833.0,96832.0,0.103271]
[1732949553915,0.11084521,96833.0,96832.0,0.103271]
[1732949554357,0.10684521,96833.0,96832.0,0.103271]
[1732949554619,0.10784521,96833.0,96832.0,0.103271]
[1732949554992,0.10884521,96833.0,96832.0,0.103271]
[1732949555691,0.10884521,96833.0,96831.0,0.00117218]
[1732949555897,0.10784521,96833.0,96831.0,0.00117218]
[1732949556144,0.11184521,96833.0,96832.0,0.103271]
[1732949556331,0.10684521,96833.0,96832.0,0.103271]
[1732949556503,0.11084521,96833.0,96832.0,0.103271]
[1732949556774,0.10684521,96833.0,96832.0,0.103271]
[1732949556982,0.10784521,96833.0,96832.0,0.103271]
[1732949557105,0.10884521,96833.0,96832.0,0.103271]
[1732949557572,0.10284521,96833.0,96832.0,0.103271]
[1732949557810,0.11084521,96833.0,96832.0,0.103271]
[1732949559476,0.10684521,96833.0,96832.0,0.103271]
[1732949559680,0.004,96833.0,96832.0,0.126271]
[1732949559942,0.006,96833.0,96832.0,0.131271]
[1732949560118,0.001,96833.0,96832.0,0.128271]
[1732949560337,0.103246,96856.0,96833.0,0.539352]
[1732949560574,0.041324,96850.0,96844.0,0.103258]
[1732949560786,0.10284521,96849.0,96844.0,0.103258]
[1732949561006,0.12327986,96849.0,96842.0,0.10326]
[1732949561232,0.12327986,96849.0,96844.0,0.103258]
[1732949561233,0.10284521,96849.0,96844.0,0.103258]
[1732949562084,0.10284521,96849.0,96842.0,0.206521]
[1732949562260,0.10284521,96849.0,96842.0,0.309781]
[1732949562459,0.10284521,96849.0,96843.0,0.103259]
[1732949562843,0.10284521,96849.0,96840.0,0.0458]
[1732949563073,0.10684521,96849.0,96840.0,0.0458]
[1732949563470,0.10684521,96849.0,96844.0,0.103258]
[1732949563471,0.10784521,96849.0,96844.0,0.103258]
[1732949563679,0.11184521,96849.0,96844.0,0.103258]
[1732949563931,0.10284521,96849.0,96841.0,0.283822]
[1732949564098,0.10284521,96849.0,96845.0,0.103256]
[1732949564298,0.10284521,96849.0,96844.0,0.103258]
[1732949564299,0.10684521,96849.0,96844.0,0.103258]
[1732949564504,0.10984521,96849.0,96845.0,0.103256]
[1732949564710,0.10684521,96849.0,96845.0,0.103256]
[1732949564909,0.10284521,96849.0,96845.0,0.103256]
[1732949565139,0.10384521,96849.0,96845.0,0.103256]
[1732949566061,0.10484521,96849.0,96845.0,0.103256]
[1732949566334,0.10284521,96846.0,96844.0,0.003]
[1732949566555,0.206519,96843.0,96831.0,0.00117218]
[1732949566777,0.10284521,96841.0,96831.0,0.00117218]
[1732949567002,0.103268,96836.0,96831.0,0.00117218]
[1732949567241,0.206528,96839.0,96831.0,0.00117218]
[1732949567242,0.10327,96834.0,96831.0,0.00117218]
[1732949567451,0.206528,96839.0,96831.0,0.00117218]
[1732949567452,0.10284521,96833.0,96831.0,0.00117218]
[1732949568529,0.10284521,96833.0,96832.0,0.0028677]
[1732949569365,0.10284521,96833.0,96832.0,0.0058677]
[1732949569571,0.10284521,96833.0,96832.0,0.1061387]
[1732949569988,0.10384521,96833.0,96832.0,0.1091387]
[1732949570200,0.10384521,96833.0,96832.0,0.1071387]
[1732949570616,0.002,96833.0,96832.0,0.1321387]
[1732949570827,0.001,96833.0,96832.0,0.1291387]
[1732949571036,0.06154833,96854.0,96845.0,0.103257]
[1732949571270,0.10284521,96853.0,96845.0,0.103257]
[1732949571503,0.10284521,96853.0,96832.0,0.2334097]
[1732949571504,0.001,96833.0,96832.0,0.1321387]
[1732949571721,0.001,96833.0,96832.0,0.2125387]
[1732949571944,0.001,96833.0,96832.0,0.2594387]
[1732949572884,0.10284521,96853.0,96832.0,0.1511677]
[1732949573096,0.103251,96852.0,96845.0,0.002]
[1732949573312,0.20609621,96851.0,96845.0,0.005]
[1732949573530,0.20609621,96851.0,96845.0,0.003]
[1732949573754,0.10284521,96851.0,96837.0,0.206532]
[1732949573964,0.10284521,96851.0,96843.0,0.103259]
[1732949574180,0.10284521,96851.0,96844.0,0.103258]
[1732949574384,0.10284521,96851.0,96838.0,0.20653]
[1732949574597,0.10284521,96851.0,96840.0,0.206526]
[1732949574845,0.10284521,96851.0,96838.0,0.20653]
[1732949575071,0.10284521,96851.0,96834.0,0.023]
[1732949575264,0.10284521,96851.0,96842.0,0.10326]
[1732949575476,0.10284521,96851.0,96837.0,0.023]
[1732949575724,0.10384521,96851.0,96845.0,0.003]
[1732949576134,0.10384521,96851.0,96844.0,0.103258]
[1732949576135,0.10284521,96851.0,96844.0,0.103258]
[1732949576556,0.10284521,96851.0,96839.0,0.206528]
[1732949576557,0.10584521,96851.0,96843.0,0.002]
[1732949576754,0.10384521,96851.0,96843.0,0.002]
[1732949576998,0.10284521,96851.0,96834.0,0.103268]
[1732949577197,0.10284521,96851.0,96833.0,0.229541]
[1732949577198,0.206504,96850.0,96845.0,0.003]
[1732949577430,0.64424521,96849.0,96844.0,0.002]
[1732949577633,0.103257,96845.0,96844.0,0.002]
[1732949577841,0.20610221,96845.0,96844.0,0.002]
[1732949578049,0.74750221,96845.0,96844.0,0.002]
[1732949578755,0.74750221,96845.0,96832.0,0.0008677]
[1732949578756,0.103258,96844.0,96843.0,0.003]
[1732949579041,0.21571204,96844.0,96843.0,0.003]
[1732949579279,0.21571204,96844.0,96832.0,0.0008677]
[1732949579280,0.11245404,96844.0,96832.0,0.0008677]
[1732949579495,0.10284521,96843.0,96832.0,0.0008677]
[1732949579702,0.10284521,96843.0,96834.0,0.103269]
[1732949580116,0.10284521,96843.0,96832.0,0.0008677]
[1732949580350,0.10284521,96843.0,96834.0,0.206539]
[1732949580539,0.10284521,96843.0,96835.0,0.206536]
[1732949580794,0.10374261,96843.0,96834.0,0.103268]
[1732949581224,0.10374261,96843.0,96832.0,0.0058677]
[1732949581225,0.20700261,96843.0,96832.0,0.1091387]
[1732949581436,0.20700261,96843.0,96833.0,0.10327]
[1732949581883,0.10374261,96843.0,96835.0,0.103268]
[1732949582062,0.10274261,96843.0,96834.0,0.103269]
[1732949582324,0.10374261,96843.0,96834.0,0.003]
[1732949582536,0.10374261,96843.0,96834.0,0.002]
[1732949583018,0.10374261,96843.0,96833.0,0.003]
[1732949583234,0.103261,96842.0,96834.0,0.002]
[1732949583462,0.10284521,96841.0,96834.0,0.005]
[1732949583674,0.02093242,96836.0,96834.0,0.005]
[1732949583892,0.20611321,96835.0,96834.0,0.005]
[1732949584282,0.10284521,96835.0,96834.0,0.005]
[1732949584522,0.10284521,96835.0,96834.0,0.003]
[1732949585144,0.10284521,96835.0,96834.0,0.006]